[Event "Zalakaros Barczay Memorial 2020"]
[Site "Zalakaros"]
[Date "2020.08.31"]
[Round "1.1"]
[White "Aczel, Gergely"]
[Black "Ilyes, Peter"]
[Result "1-0"]
[ECO "A96"]
[WhiteElo "2532"]
[BlackElo "1902"]
[Annotator "ChessBase"]
[PlyCount "73"]
[EventDate "2020.08.31"]
[EventType "swiss"]
[EventCountry "HUN"]
[SourceTitle "playchess.com"]
[Source "ChessBase"]
[SourceQuality "1"]
[TimeControl "40/5400+30:1800+30"]

1. d4 {[%emt 0:00:04]} e6 {[%emt 0:00:05]} 2. c4 {[%emt 0:00:05]} f5 {[%emt 0:00:20]} 3. g3 {[%emt 0:00:09]} Nf6 {[%emt 0:00:38]} 4. Bg2 {[%emt 0:00:03]} Be7 {[%emt 0:01:32]} 5. Nf3 {[%emt 0:00:26]} O-O {[%emt 0:01:34]} 6. O-O {[%emt 0:00:04]} d6 {[%emt 0:00:48]} 7. Nc3 {[%emt 0:00:11]} a5 {[%emt 0:00:20]} 8. Qc2 {[%emt 0:01:24]} Nc6 {[%emt 0:02:40]} 9. e4 {[%emt 0:03:31]} e5 {[%emt 0:02:42]} 10. dxe5 {[%emt 0:00:48]} dxe5 {[%emt 0:00:20]} 11. Rd1 {[%emt 0:16:23]} Qe8 {[%emt 0:00:13]} 12. Bg5 {[%emt 0:06:22]} Qh5 {[%emt 0:04:23]} 13. Bxf6 {[%emt 0:00:45]} Bxf6 {[%emt 0:00:22]} 14. Nd5 {[%emt 0:01:30]} Bd8 {[%emt 0:00:12]} 15. Re1 {[%emt 0:22:17]} f4 {[%emt 0:10:37]} 16. Qc3 {[%emt 0:03:13]} fxg3 {[%emt 0:01:03]} 17. hxg3 {[%emt 0:01:46]} Bg4 {[%emt 0:16:03]} 18. Re3 {[%emt 0:01:04]} Ra6 {[%emt 0:10:46]} 19. Rd1 {[%emt 0:18:20]} Nd4 {[%emt 0:20:50]} 20. Nxe5 {[%emt 0:00:37]} Bxd1 {[%emt 0:04:25]} 21. Qxd4 {[%emt 0:00:16]} Ba4 {[%emt 0:04:18]} 22. b3 {[%emt 0:07:49]} c5 {[%emt 0:03:36]} 23. Qc3 {[%emt 0:02:50]} Re6 {[%emt 0:01:16]} 24. Nd3 {[%emt 0:03:47]} Bc6 {[%emt 0:01:11]} 25. N3f4 {[%emt 0:00:06]} Qe8 {[%emt 0:02:34]} 26. Nxe6 {[%emt 0:00:07]} Qxe6 {[%emt 0:00:07]} 27. e5 {[%emt 0:00:10]} Qf5 {[%emt 0:01:12]} 28. Qe1 {[%emt 0:01:39]} Re8 {[%emt 0:01:40]} 29. e6 {[%emt 0:01:17]} Bxd5 {[%emt 0:00:26]} 30. Bxd5 {[%emt 0:00:33]} Re7 {[%emt 0:01:24]} 31. Rf3 {[%emt 0:00:44]} Qg5 {[%emt 0:00:25]} 32. Qe4 {[%emt 0:01:26]} b6 {[%emt 0:02:27]} 33. Rf7 {[%emt 0:00:22]} h5 {[%emt 0:03:14]} 34. Rf5 {[%emt 0:01:40]} Qh6 {[%emt 0:00:41]} 35. Qf3 {[%emt 0:01:57]} g6 {[%emt 0:02:10]} 36. Rf7 {[%emt 0:00:03]} Qg5 {[%emt 0:00:39]} 37. Rf8+ 1-0

[Event "Zalakaros Barczay Memorial 2020"]
[Site "Zalakaros"]
[Date "2020.08.31"]
[Round "1.2"]
[White "Deak, Laszlo"]
[Black "Kaczur, Florian"]
[Result "0-1"]
[ECO "C48"]
[WhiteElo "1890"]
[BlackElo "2488"]
[Annotator "ChessBase"]
[PlyCount "86"]
[EventDate "2020.08.31"]
[EventType "swiss"]
[EventCountry "HUN"]
[SourceTitle "playchess.com"]
[Source "ChessBase"]
[SourceQuality "1"]
[TimeControl "40/5400+30:1800+30"]

1. e4 {[%emt 0:00:40]} e5 {[%emt 0:00:20]} 2. Nc3 {[%emt 0:00:17]} Nf6 {[%emt 0:00:37]} 3. Nf3 {[%emt 0:00:22]} Nc6 {[%emt 0:01:30]} 4. Bb5 {[%emt 0:00:31]} Bd6 {[%emt 0:07:16]} 5. O-O {[%emt 0:11:58]} O-O {[%emt 0:00:25]} 6. d4 {[%emt 0:16:32]} exd4 {[%emt 0:01:51]} 7. Nxd4 {[%emt 0:04:42]} Be5 {[%emt 0:03:16]} 8. Nf5 {[%emt 0:04:19]} d6 {[%emt 0:09:27]} 9. Bg5 {[%emt 0:08:25]} Bxf5 {[%emt 0:06:27]} 10. exf5 {[%emt 0:00:08]} Ne7 {[%emt 0:01:51]} 11. f4 {[%emt 0:16:05]} Bxc3 {[%emt 0:00:29]} 12. bxc3 {[%emt 0:00:02]} Ned5 {[%emt 0:12:25]} 13. Qf3 {[%emt 0:09:37]} c6 {[%emt 0:01:13]} 14. Bc4 {[%emt 0:00:27]} Qb6+ {[%emt 0:00:41]} 15. Kh1 {[%emt 0:06:35]} Qe3 {[%emt 0:07:12]} 16. Bxd5 {[%emt 0:03:01]} Nxd5 {[%emt 0:00:07]} 17. c4 {[%emt 0:00:13]} Qxf3 {[%emt 0:00:08]} 18. Rxf3 {[%emt 0:00:12]} Nb6 {[%emt 0:03:00]} 19. c5 {[%emt 0:03:51]} dxc5 {[%emt 0:00:15]} 20. Be7 {[%emt 0:00:11]} Rfe8 {[%emt 0:00:04]} 21. Bxc5 {[%emt 0:00:12]} Nd7 {[%emt 0:02:19]} 22. Bg1 {[%emt 0:03:08]} b6 {[%emt 0:03:45]} 23. Rd1 {[%emt 0:03:53]} Nf6 {[%emt 0:00:15]} 24. h3 {[%emt 0:00:24]} h5 {[%emt 0:04:29]} 25. Re3 {[%emt 0:03:22]} Rxe3 {[%emt 0:01:16]} 26. Bxe3 {[%emt 0:00:01]} Re8 {[%emt 0:00:16]} 27. Re1 {[%emt 0:01:28]} Nd5 {[%emt 0:02:03]} 28. Bd2 {[%emt 0:00:02]} Rxe1+ {[%emt 0:00:39]} 29. Bxe1 {[%emt 0:00:01]} Ne3 {[%emt 0:01:33]} 30. c3 {[%emt 0:01:05]} Nxf5 {[%emt 0:00:17]} 31. a4 {[%emt 0:00:22]} Nd6 {[%emt 0:00:26]} 32. g4 {[%emt 0:00:49]} hxg4 {[%emt 0:00:06]} 33. hxg4 {[%emt 0:00:10]} Nc4 {[%emt 0:00:32]} 34. Kg2 {[%emt 0:00:15]} Nb2 {[%emt 0:03:04]} 35. Kf3 {[%emt 0:00:13]} Nxa4 {[%emt 0:00:11]} 36. Ke4 {[%emt 0:00:15]} Nc5+ {[%emt 0:00:07]} 37. Ke3 {[%emt 0:00:29]} Kf8 {[%emt 0:00:26]} 38. c4 {[%emt 0:00:17]} Nb7 {[%emt 0:01:36]} 39. Bb4+ {[%emt 0:01:00]} c5 {[%emt 0:00:21]} 40. Bc3 {[%emt 0:00:00]} Nd6 {[%emt 0:00:00]} 41. Kd3 {[%emt 0:08:44]} g6 {[%emt 0:00:49]} 42. Be5 {[%emt 0:01:17]} Ke7 {[%emt 0:00:05]} 43. Kc3 {[%emt 0:00:19]} f6 {[%emt 0:00:21]} 0-1

[Event "Zalakaros Barczay Memorial 2020"]
[Site "Zalakaros"]
[Date "2020.08.31"]
[Round "1.3"]
[White "Horvath, Adam"]
[Black "Gal, Lajos"]
[Result "1-0"]
[ECO "C42"]
[WhiteElo "2497"]
[BlackElo "1897"]
[Annotator "ChessBase"]
[PlyCount "45"]
[EventDate "2020.08.31"]
[EventType "swiss"]
[EventCountry "HUN"]
[SourceTitle "playchess.com"]
[Source "ChessBase"]
[SourceQuality "1"]
[TimeControl "40/5400+30:1800+30"]

1. e4 {[%emt 0:05:18]} e5 {[%emt 0:04:26]} 2. Nf3 {[%emt 0:00:06]} Nf6 {[%emt 0:00:06]} 3. Nxe5 {[%emt 0:00:10]} d6 {[%emt 0:00:09]} 4. Nf3 {[%emt 0:00:05]} Nxe4 {[%emt 0:00:08]} 5. Nc3 {[%emt 0:00:06]} Nxc3 {[%emt 0:01:47]} 6. dxc3 {[%emt 0:01:22]} Be7 {[%emt 0:02:21]} 7. Bf4 {[%emt 0:01:25]} Be6 {[%emt 0:08:09]} 8. Nd4 {[%emt 0:03:15]} Bd7 {[%emt 0:17:38]} 9. Bd3 {[%emt 0:04:53]} Qc8 {[%emt 0:03:07]} 10. O-O {[%emt 0:13:39]} O-O {[%emt 0:03:37]} 11. Qh5 {[%emt 0:00:13]} g6 {[%emt 0:01:56]} 12. Qf3 {[%emt 0:00:06]} Bg4 {[%emt 0:05:02]} 13. Qe4 {[%emt 0:03:58]} Bf6 {[%emt 0:08:13]} 14. Rfe1 {[%emt 0:01:49]} Na6 {[%emt 0:02:56]} 15. Bh6 {[%emt 0:03:22]} Nc5 {[%emt 0:11:24]} 16. Qf4 {[%emt 0:00:41]} Bg7 {[%emt 0:00:25]} 17. Bxg7 {[%emt 0:01:51]} Kxg7 {[%emt 0:00:13]} 18. Re7 {[%emt 0:01:00]} Nxd3 {[%emt 0:14:07]} 19. cxd3 {[%emt 0:00:28]} Kg8 {[%emt 0:01:11]} 20. Rae1 {[%emt 0:05:33]} Bd7 {[%emt 0:05:11]} 21. Qh6 {[%emt 0:02:45]} Re8 {[%emt 0:01:34]} 22. Nf3 {[%emt 0:00:44]} Rxe7 {[%emt 0:01:19]} 23. Rxe7 {[%emt 0:00:05]} 1-0

[Event "Zalakaros Barczay Memorial 2020"]
[Site "Zalakaros"]
[Date "2020.08.31"]
[Round "1.4"]
[White "Somogyi, Gabor"]
[Black "Pasti, Aron"]
[Result "0-1"]
[ECO "D56"]
[WhiteElo "1830"]
[BlackElo "2270"]
[Annotator "ChessBase"]
[PlyCount "112"]
[EventDate "2020.08.31"]
[EventType "swiss"]
[EventCountry "HUN"]
[SourceTitle "playchess.com"]
[Source "ChessBase"]
[SourceQuality "1"]
[TimeControl "40/5400+30:1800+30"]

1. d4 {[%emt 0:00:03]} d5 {[%emt 0:00:49]} 2. Nf3 {[%emt 0:00:03]} Nf6 {[%emt 0:00:07]} 3. c4 {[%emt 0:00:18]} e6 {[%emt 0:00:04]} 4. Bg5 {[%emt 0:00:29]} Be7 {[%emt 0:00:05]} 5. Nc3 {[%emt 0:00:08]} h6 {[%emt 0:00:08]} 6. Bh4 {[%emt 0:00:15]} O-O {[%emt 0:00:08]} 7. e3 {[%emt 0:00:10]} Nbd7 {[%emt 0:00:04]} 8. cxd5 {[%emt 0:00:50]} Nxd5 {[%emt 0:00:14]} 9. Bxe7 {[%emt 0:00:20]} Qxe7 {[%emt 0:00:04]} 10. Nxd5 {[%emt 0:01:29]} exd5 {[%emt 0:00:06]} 11. Bd3 {[%emt 0:04:10]} Nf6 {[%emt 0:01:22]} 12. Qc2 {[%emt 0:18:02]} Be6 {[%emt 0:03:35]} 13. Qc5 {[%emt 0:01:20]} Qd8 {[%emt 0:02:52]} 14. Rc1 {[%emt 0:01:32]} c6 {[%emt 0:03:12]} 15. O-O {[%emt 0:00:56]} Nd7 {[%emt 0:00:08]} 16. Qb4 {[%emt 0:12:19]} Qc7 {[%emt 0:03:36]} 17. Qd2 {[%emt 0:10:52]} a5 {[%emt 0:01:22]} 18. Bb1 {[%emt 0:06:33]} Rfc8 {[%emt 0:01:12]} 19. Qd3 {[%emt 0:02:26]} g6 {[%emt 0:00:36]} 20. Nh4 {[%emt 0:01:15]} Nf8 {[%emt 0:00:07]} 21. Qd2 {[%emt 0:09:01]} Kh7 {[%emt 0:06:11]} 22. f4 {[%emt 0:05:30]} f5 {[%emt 0:00:31]} 23. Nf3 {[%emt 0:00:56]} Nd7 {[%emt 0:03:22]} 24. Ne5 {[%emt 0:00:56]} Nxe5 {[%emt 0:00:06]} 25. fxe5 {[%emt 0:00:13]} b6 {[%emt 0:00:06]} 26. g4 {[%emt 0:03:17]} Qd7 {[%emt 0:02:00]} 27. Kh1 {[%emt 0:04:17]} Rf8 {[%emt 0:03:58]} 28. gxf5 {[%emt 0:08:22]} Rxf5 {[%emt 0:05:46]} 29. Bxf5 {[%emt 0:05:30]} Bxf5 {[%emt 0:00:53]} 30. Kg1 {[%emt 0:01:17]} Rf8 {[%emt 0:03:43]} 31. Qf2 {[%emt 0:01:54]} c5 {[%emt 0:04:36]} 32. Qg3 {[%emt 0:00:14]} c4 {[%emt 0:01:07]} 33. Rf2 {[%emt 0:00:52]} b5 {[%emt 0:00:37]} 34. Rcf1 {[%emt 0:00:26]} b4 {[%emt 0:00:05]} 35. Qh4 {[%emt 0:00:39]} h5 {[%emt 0:01:59]} 36. Qg5 {[%emt 0:00:32]} Rf7 {[%emt 0:04:54]} 37. h4 {[%emt 0:00:30]} a4 {[%emt 0:14:18]} 38. Rf4 {[%emt 0:00:24]} c3 {[%emt 0:03:33]} 39. R4f2 {[%emt 0:00:16]} c2 {[%emt 0:00:43]} 40. b3 {[%emt 0:00:00]} axb3 {[%emt 0:00:00]} 41. axb3 {[%emt 0:00:53]} Qc8 {[%emt 0:15:14]} 42. e4 {[%emt 0:05:55]} dxe4 {[%emt 0:01:28]} 43. Qd2 {[%emt 0:10:50]} Rc7 {[%emt 0:02:36]} 44. Rc1 {[%emt 0:03:39]} Rc3 {[%emt 0:01:24]} 45. Qg5 {[%emt 0:04:39]} e3 {[%emt 0:01:40]} 46. Re2 {[%emt 0:02:03]} Rxb3 {[%emt 0:01:28]} 47. Rxe3 {[%emt 0:00:17]} Rb1 {[%emt 0:00:59]} 48. Ree1 {[%emt 0:01:45]} Rxc1 {[%emt 0:01:29]} 49. Qe7+ {[%emt 0:02:48]} Kh8 {[%emt 0:00:51]} 50. Rxc1 {[%emt 0:00:24]} b3 {[%emt 0:00:56]} 51. Qb4 {[%emt 0:02:01]} Be4 {[%emt 0:03:02]} 52. Qxb3 {[%emt 0:00:51]} Qg4+ {[%emt 0:00:04]} 53. Kf1 {[%emt 0:01:10]} Qf4+ {[%emt 0:00:14]} 54. Ke2 {[%emt 0:00:20]} Qxc1 {[%emt 0:00:03]} 55. Qb8+ {[%emt 0:00:07]} Kh7 {[%emt 0:00:18]} 56. Qc7+ {[%emt 0:01:06]} Kh6 {[%emt 0:00:04]} 0-1

[Event "Zalakaros Barczay Memorial 2020"]
[Site "Zalakaros"]
[Date "2020.08.31"]
[Round "1.5"]
[White "Leszko, Bence"]
[Black "Csiszar, Albert"]
[Result "1-0"]
[ECO "C10"]
[WhiteElo "2305"]
[BlackElo "1866"]
[Annotator "ChessBase"]
[PlyCount "47"]
[EventDate "2020.08.31"]
[EventType "swiss"]
[EventCountry "HUN"]
[SourceTitle "playchess.com"]
[Source "ChessBase"]
[SourceQuality "1"]
[TimeControl "40/5400+30:1800+30"]

1. e4 {[%emt 0:00:07]} e6 {[%emt 0:00:11]} 2. d4 {[%emt 0:00:09]} d5 {[%emt 0:00:05]} 3. Nc3 {[%emt 0:00:03]} c6 {[%emt 0:00:19]} 4. Nf3 {[%emt 0:00:26]} f5 {[%emt 0:02:13]} 5. exf5 {[%emt 0:00:51]} exf5 {[%emt 0:00:28]} 6. Ne5 {[%emt 0:00:38]} g6 {[%emt 0:01:38]} 7. Bd3 {[%emt 0:00:10]} Qh4 {[%emt 0:01:31]} 8. Qe2 {[%emt 0:00:46]} Be7 {[%emt 0:00:29]} 9. Nf3 {[%emt 0:01:47]} Qg4 {[%emt 0:03:20]} 10. h3 {[%emt 0:00:22]} Qh5 {[%emt 0:03:54]} 11. Bf4 {[%emt 0:00:27]} Nf6 {[%emt 0:01:57]} 12. Be5 {[%emt 0:00:57]} Kf7 {[%emt 0:01:15]} 13. O-O-O {[%emt 0:00:34]} Qh6+ {[%emt 0:02:12]} 14. Kb1 {[%emt 0:00:10]} Re8 {[%emt 0:00:05]} 15. g4 {[%emt 0:00:27]} Ne4 {[%emt 0:00:15]} 16. gxf5 {[%emt 0:03:56]} Nxc3+ {[%emt 0:01:31]} 17. bxc3 {[%emt 0:00:01]} Bxf5 {[%emt 0:02:51]} 18. Bxf5 {[%emt 0:00:18]} gxf5 {[%emt 0:00:10]} 19. Qd3 {[%emt 0:00:12]} Qh5 {[%emt 0:10:20]} 20. Rhg1 {[%emt 0:00:10]} Nd7 {[%emt 0:02:53]} 21. Ng5+ {[%emt 0:02:51]} Bxg5 {[%emt 0:02:12]} 22. Qxf5+ {[%emt 0:00:02]} Ke7 {[%emt 0:11:32]} 23. Rde1 {[%emt 0:00:12]} Qg6 {[%emt 0:07:30]} 24. Bc7+ {[%emt 0:00:10]} 1-0

[Event "Zalakaros Barczay Memorial 2020"]
[Site "Zalakaros"]
[Date "2020.08.31"]
[Round "1.6"]
[White "Alexandrova, Angelina"]
[Black "Dobos, Jozsef"]
[Result "1/2-1/2"]
[ECO "A04"]
[WhiteElo "1815"]
[BlackElo "2254"]
[Annotator "ChessBase"]
[PlyCount "44"]
[EventDate "2020.08.31"]
[EventType "swiss"]
[EventCountry "HUN"]
[SourceTitle "playchess.com"]
[Source "ChessBase"]
[SourceQuality "1"]
[TimeControl "40/5400+30:1800+30"]

1. Nf3 {[%emt 0:00:04]} g6 {[%emt 0:10:37]} 2. e4 {[%emt 0:00:30]} Bg7 {[%emt 0:01:21]} 3. Nc3 {[%emt 0:01:49]} c5 {[%emt 0:03:35]} 4. Bc4 {[%emt 0:01:21]} Nc6 {[%emt 0:00:44]} 5. O-O {[%emt 0:02:14]} d6 {[%emt 0:00:57]} 6. a3 {[%emt 0:01:17]} Nf6 {[%emt 0:00:43]} 7. d4 {[%emt 0:04:13]} cxd4 {[%emt 0:01:29]} 8. Nxd4 {[%emt 0:02:07]} O-O {[%emt 0:01:12]} 9. Bg5 {[%emt 0:05:21]} h6 {[%emt 0:02:51]} 10. Bh4 {[%emt 0:02:24]} Nxd4 {[%emt 0:09:57]} 11. Qxd4 Be6 {[%emt 0:00:04]} 12. Bxe6 {[%emt 0:02:38]} fxe6 {[%emt 0:00:45]} 13. e5 {[%emt 0:01:45]} dxe5 {[%emt 0:16:05]} 14. Qxe5 {[%emt 0:00:18]} Qd6 {[%emt 0:00:02]} 15. Rfe1 {[%emt 0:09:13]} Qxe5 {[%emt 0:04:19]} 16. Rxe5 {[%emt 0:00:14]} Nd5 {[%emt 0:02:47]} 17. Rxe6 {[%emt 0:01:09]} Nxc3 {[%emt 0:00:08]} 18. bxc3 {[%emt 0:01:31]} g5 {[%emt 0:01:12]} 19. Bg3 {[%emt 0:00:36]} Kf7 {[%emt 0:00:44]} 20. Rae1 {[%emt 0:03:07]} Bf6 {[%emt 0:06:35]} 21. R6e3 {[%emt 0:05:04]} Rfd8 {[%emt 0:01:46]} 22. Be5 {[%emt 0:02:10]} Rd7 {[%emt 0:00:19]} 1/2-1/2

[Event "Zalakaros Barczay Memorial 2020"]
[Site "Zalakaros"]
[Date "2020.08.31"]
[Round "1.7"]
[White "Pasztor, Ferenc"]
[Black "Marosvolgyi, Ferenc"]
[Result "1-0"]
[ECO "E91"]
[WhiteElo "2231"]
[BlackElo "1811"]
[Annotator "ChessBase"]
[PlyCount "77"]
[EventDate "2020.08.31"]
[EventType "swiss"]
[EventCountry "HUN"]
[SourceTitle "playchess.com"]
[Source "ChessBase"]
[SourceQuality "1"]
[TimeControl "40/5400+30:1800+30"]

1. d4 {[%emt 0:00:05]} d6 {[%emt 0:00:08]} 2. c4 {[%emt 0:00:14]} g6 {[%emt 0:00:09]} 3. Nc3 {[%emt 0:00:08]} Bg7 {[%emt 0:00:13]} 4. e4 {[%emt 0:00:16]} Nf6 {[%emt 0:00:14]} 5. Be2 {[%emt 0:00:40]} O-O {[%emt 0:00:43]} 6. Nf3 {[%emt 0:01:06]} Nc6 {[%emt 0:01:33]} 7. d5 {[%emt 0:00:41]} Nb4 {[%emt 0:03:21]} 8. a3 {[%emt 0:03:53]} Na6 {[%emt 0:00:15]} 9. Be3 {[%emt 0:00:43]} c6 {[%emt 0:01:34]} 10. Rc1 {[%emt 0:01:00]} Nc7 {[%emt 0:01:40]} 11. h3 {[%emt 0:01:14]} h5 {[%emt 0:03:24]} 12. Qd2 {[%emt 0:02:16]} Nh7 {[%emt 0:01:44]} 13. Bh6 {[%emt 0:01:48]} Ne8 {[%emt 0:01:23]} 14. g4 {[%emt 0:09:11]} Nef6 {[%emt 0:04:51]} 15. Nd4 {[%emt 0:10:20]} e5 {[%emt 0:01:57]} 16. Nc2 {[%emt 0:00:22]} h4 {[%emt 0:04:00]} 17. dxc6 {[%emt 0:08:53]} bxc6 {[%emt 0:00:22]} 18. Bxg7 {[%emt 0:02:25]} Kxg7 {[%emt 0:00:11]} 19. Rd1 {[%emt 0:00:19]} Ne8 {[%emt 0:02:03]} 20. c5 {[%emt 0:00:22]} Qg5 {[%emt 0:01:17]} 21. cxd6 {[%emt 0:00:52]} Bd7 {[%emt 0:00:24]} 22. Ne3 {[%emt 0:01:25]} Rd8 {[%emt 0:02:08]} 23. Nc4 {[%emt 0:00:46]} f6 {[%emt 0:04:42]} 24. Na4 {[%emt 0:04:50]} Qxd2+ {[%emt 0:00:33]} 25. Rxd2 {[%emt 0:00:11]} Ng5 {[%emt 0:00:08]} 26. Nc5 {[%emt 0:02:00]} Ne6 {[%emt 0:01:27]} 27. b4 {[%emt 0:00:47]} Nd4 {[%emt 0:00:56]} 28. f4 {[%emt 0:10:59]} Nxe2 {[%emt 0:01:09]} 29. Kxe2 {[%emt 0:00:03]} exf4 {[%emt 0:00:02]} 30. Kf3 {[%emt 0:00:35]} g5 {[%emt 0:00:16]} 31. Re1 {[%emt 0:00:48]} Kg8 {[%emt 0:05:29]} 32. e5 fxe5 {[%emt 0:00:59]} 33. Rxe5 {[%emt 0:01:37]} Nf6 {[%emt 0:03:41]} 34. Rxg5+ {[%emt 0:01:27]} Kh7 {[%emt 0:00:02]} 35. Re5 {[%emt 0:03:12]} Kg7 {[%emt 0:04:06]} 36. Re7+ {[%emt 0:00:22]} Kh6 {[%emt 0:04:02]} 37. Ne5 {[%emt 0:00:43]} Be8 {[%emt 0:01:31]} 38. Ne6 {[%emt 0:00:26]} Nd5 {[%emt 0:01:01]} 39. g5+ {[%emt 0:00:20]} 1-0

[Event "Zalakaros Barczay Memorial 2020"]
[Site "Zalakaros"]
[Date "2020.08.31"]
[Round "1.8"]
[White "Gyorfi, Norbert"]
[Black "Hardicsay, Peter"]
[Result "0-1"]
[ECO "B22"]
[WhiteElo "1745"]
[BlackElo "2196"]
[Annotator "NA"]
[PlyCount "56"]
[EventDate "2020.08.31"]
[EventType "swiss"]
[EventCountry "HUN"]
[SourceTitle "playchess.com"]
[Source "ChessBase"]
[SourceQuality "1"]
[TimeControl "40/5400+30:1800+30"]

1. e4 {[%emt 0:00:03]} c5 {[%emt 0:00:24]} 2. c3 {[%emt 0:00:05]} Nf6 {[%emt 0:00:27]} 3. e5 {[%emt 0:00:06]} Nd5 {[%emt 0:00:11]} 4. d4 {[%emt 0:00:09]} cxd4 {[%emt 0:00:33]} 5. Nf3 {[%emt 0:01:05]} Nc6 {[%emt 0:03:50]} 6. Bc4 {[%emt 0:02:34]} Nb6 {[%emt 0:00:29]} 7. Bb3 {[%emt 0:00:12]} d5 {[%emt 0:01:49]} 8. exd6 {[%emt 0:00:07]} Qxd6 {[%emt 0:00:59]} 9. O-O {[%emt 0:01:02]} Be6 {[%emt 0:06:59]} 10. Na3 {[%emt 0:03:47]} a6 {[%emt 0:10:51]} 11. Bxe6 {[%emt 0:15:26]} Qxe6 {[%emt 0:00:22]} 12. Re1 {[%emt 0:09:51] B22: Sicilian: 2 c3.} Qd5 {[%emt 0:07:12]} 13. cxd4 {[%emt 0:08:57]} e6 {[%emt 0:03:43]} 14. Nc2 {[%emt 0:02:30]} Be7 {[%emt 0:04:48] [#]} 15. Bf4 $146 {[%emt 0:07:26]} ({Predecessor:} 15. Ne3 Qd6 16. Ng4 Rc8 17. a3 O-O 18. Nge5 Nxe5 19. Nxe5 Nc4 20. Bf4 Qd5 21. b3 Nxa3 {0-1 (29) Harasta,I (2150)-Cuker,D (2078) Slovakia 2010}) 15... Qd8 {[%emt 0:06:13]} 16. Qe2 {[%emt 0:08:00]} Nd5 {[%emt 0:02:02]} 17. Bg3 {[%emt 0:00:54]} O-O {[%emt 0:00:26]} 18. a3 {[%emt 0:01:47]} Rc8 {[%emt 0:03:12]} 19. Rad1 {[%emt 0:01:20]} Qb6 {[%emt 0:07:59]} 20. Ne3 {[%emt 0:14:26]} Rfd8 {[%emt 0:03:23]} 21. b4 $2 {[%emt 0:10:43]} (21. h3 $15) 21... Nc3 $1 {[%emt 0:00:30] Double Attack} 22. Qd2 {[%emt 0:00:52]} Nxd1 {[%emt 0:01:42]} 23. Rxd1 {[%emt 0:00:01]} a5 {[%emt 0:03:12]} 24. Nc4 $19 {[%emt 0:08:08]} Qb5 {[%emt 0:01:53]} 25. Nce5 {[%emt 0:02:25]} axb4 {[%emt 0:05:45]} 26. axb4 {[%emt 0:00:28]} Nxe5 {[%emt 0:05:29]} 27. Nxe5 {[%emt 0:00:33]} Qd5 {[%emt 0:02:45]} 28. Qf4 {[%emt 0:00:31]} f6 {[%emt 0:00:18]} 0-1

[Event "Zalakaros Barczay Memorial 2020"]
[Site "Zalakaros"]
[Date "2020.08.31"]
[Round "1.9"]
[White "Meszaros, Andras"]
[Black "Lukacs, Laszlo"]
[Result "1-0"]
[ECO "B40"]
[WhiteElo "2203"]
[BlackElo "1750"]
[Annotator "ChessBase"]
[PlyCount "51"]
[EventDate "2020.08.31"]
[EventType "swiss"]
[EventCountry "HUN"]
[SourceTitle "playchess.com"]
[Source "ChessBase"]
[SourceQuality "1"]
[TimeControl "40/5400+30:1800+30"]

1. e4 {[%emt 0:00:09]} c5 {[%emt 0:00:05]} 2. Nf3 {[%emt 0:00:09]} e6 {[%emt 0:00:06]} 3. Be2 {[%emt 0:00:17]} Nc6 {[%emt 0:00:10]} 4. c4 {[%emt 0:00:18]} Nd4 {[%emt 0:00:59]} 5. O-O {[%emt 0:00:30]} Nxe2+ {[%emt 0:00:13]} 6. Qxe2 {[%emt 0:00:06]} Ne7 {[%emt 0:00:20]} 7. d4 {[%emt 0:00:36]} cxd4 {[%emt 0:00:09]} 8. Nxd4 {[%emt 0:00:07]} e5 {[%emt 0:00:26]} 9. Nc2 {[%emt 0:03:50]} Nc6 {[%emt 0:00:08]} 10. Be3 {[%emt 0:00:32]} d6 {[%emt 0:03:55]} 11. Nc3 {[%emt 0:00:08]} Be6 {[%emt 0:00:46]} 12. Rfd1 {[%emt 0:00:42]} Qf6 {[%emt 0:03:58]} 13. Nd5 {[%emt 0:00:48]} Bxd5 {[%emt 0:01:37]} 14. cxd5 {[%emt 0:00:06]} Nd8 {[%emt 0:03:49]} 15. Qb5+ {[%emt 0:00:09]} Ke7 {[%emt 0:00:17]} 16. Rac1 {[%emt 0:00:11]} Qg6 {[%emt 0:02:21]} 17. Nd4 {[%emt 0:03:40]} Kf6 {[%emt 0:00:56]} 18. Nf5 {[%emt 0:01:13]} Qh5 {[%emt 0:04:05]} 19. f3 {[%emt 0:01:33]} g5 {[%emt 0:00:02]} 20. Qd7 {[%emt 0:01:00]} Qg6 {[%emt 0:02:35]} 21. Rc7 {[%emt 0:01:09]} h5 {[%emt 0:00:07]} 22. Rdc1 {[%emt 0:01:45]} Qh7 {[%emt 0:02:56]} 23. Rc8 {[%emt 0:00:34]} Rxc8 {[%emt 0:00:31]} 24. Rxc8 {[%emt 0:00:06]} Ne6 {[%emt 0:00:27]} 25. dxe6 {[%emt 0:00:41]} fxe6 {[%emt 0:00:02]} 26. Rxf8+ {[%emt 0:00:22]} 1-0

[Event "Zalakaros Barczay Memorial 2020"]
[Site "Zalakaros"]
[Date "2020.08.31"]
[Round "1.10"]
[White "Dlauchy, Peter"]
[Black "Boguszlavszkij, Jevgenyij"]
[Result "0-1"]
[ECO "B01"]
[WhiteElo "1690"]
[BlackElo "2168"]
[Annotator "NA"]
[PlyCount "66"]
[EventDate "2020.08.31"]
[EventType "swiss"]
[EventCountry "HUN"]
[SourceTitle "playchess.com"]
[Source "ChessBase"]
[SourceQuality "1"]
[TimeControl "40/5400+30:1800+30"]

1. e4 {[%emt 0:00:02]} d5 {[%emt 0:00:33]} 2. exd5 {[%emt 0:00:29]} Nf6 {[%emt 0:00:06]} 3. d4 {[%emt 0:00:22]} Bg4 {[%emt 0:01:29]} 4. Be2 {[%emt 0:01:09]} Bxe2 {[%emt 0:00:11]} 5. Qxe2 {[%emt 0:00:20]} Qxd5 {[%emt 0:00:26]} 6. Nf3 {[%emt 0:00:42]} e6 {[%emt 0:00:44]} 7. Nc3 {[%emt 0:01:57] B01: Scandinavian Defence.} Bb4 {[%emt 0:03:19]} 8. O-O {[%emt 0:02:00]} Bxc3 {[%emt 0:00:23]} 9. bxc3 {[%emt 0:00:25]} O-O {[%emt 0:00:28]} 10. c4 {[%emt 0:02:01]} Qh5 {[%emt 0:01:15] [#]} 11. Rb1 $146 {[%emt 0:00:47]} ({Predecessor:} 11. Bf4 c6 12. Rab1 b6 13. Rfe1 Nbd7 14. Qd2 c5 15. c3 Rac8 16. Ne5 cxd4 17. cxd4 Nxe5 18. Rxe5 {0-1 (29) Smith,O (1986)-Kett,T (2195) Hensol Park 2006}) 11... b6 {[%emt 0:00:37]} 12. Rb5 {[%emt 0:01:42]} Qg6 {[%emt 0:02:26]} 13. Re1 {[%emt 0:00:40]} h6 {[%emt 0:00:37]} 14. Ne5 {[%emt 0:04:31]} Qh7 {[%emt 0:00:26]} 15. Rb3 {[%emt 0:02:32]} Nbd7 {[%emt 0:02:36]} 16. Nxd7 {[%emt 0:03:16]} Nxd7 {[%emt 0:00:09]} 17. Rg3 {[%emt 0:01:17]} Kh8 $11 {[%emt 0:10:45]} 18. Bb2 {[%emt 0:13:31]} Rae8 {[%emt 0:00:39]} 19. Bc1 {[%emt 0:25:33]} Rg8 {[%emt 0:25:45]} 20. Qf3 {[%emt 0:02:26]} (20. Ra3 $14) 20... Qxc2 {[%emt 0:03:09]} 21. Rh3 {[%emt 0:03:24]} Qf5 {[%emt 0:09:21]} 22. Qc6 {[%emt 0:07:17]} Nf6 {[%emt 0:09:06]} 23. Rf3 {[%emt 0:06:23]} Qg6 {[%emt 0:05:57]} 24. Rg3 {[%emt 0:01:22]} Qh5 {[%emt 0:04:41]} 25. Rh3 {[%emt 0:06:12]} Qg4 {[%emt 0:04:31]} 26. Be3 {[%emt 0:01:36]} Re7 {[%emt 0:02:03]} 27. Rg3 {[%emt 0:07:16]} Qe4 {[%emt 0:00:33]} 28. Qa4 {[%emt 0:00:37]} a5 {[%emt 0:00:58]} 29. Qd1 {[%emt 0:00:15]} Qf5 {[%emt 0:02:17]} 30. Bxh6 {[%emt 0:01:03]} gxh6 {[%emt 0:01:08]} 31. Rxg8+ {[%emt 0:00:18]} Kxg8 {[%emt 0:02:32]} 32. Re5 $19 {[%emt 0:00:37]} Qg4 {[%emt 0:00:30]} 33. Qd2 {[%emt 0:00:51]} Rd7 {[%emt 0:00:32]} 0-1